fUSD/lending_fUSD_20251117
["ID","MTS","AMOUNT","RATE_DAILY","PERIOD"]
[394219431,1763388635176,-260.02125528,0.00037868,2]
[394219432,1763388635186,-500.79180698,0.00037873,5]
[394219433,1763388635195,-505.75054514,0.00037873,5]
[394219434,1763388635204,-500.0,0.00037873,5]
[394219435,1763388635213,-500.0,0.00037873,5]
[394219436,1763388635222,-500.0,0.00037873,5]
[394219437,1763388635232,-500.0,0.00037873,5]
[394219438,1763388635241,-434.25367248,0.00037873,5]
[394219439,1763388635251,-500.0,0.00037873,5]
[394219440,1763388635260,-178.44869553,0.00037873,5]
[394219441,1763388635269,-500.0,0.00037873,5]
[394219442,1763388635278,-274.80265441,0.00037873,5]
[394219443,1763388635288,-500.0,0.00037873,2]
[394219444,1763388635297,-500.0,0.00037873,5]
[394219445,1763388635306,-6346.58,0.00037876,31]
[394219446,1763388635318,-500.0,0.00037877,2]
[394219447,1763388635328,-500.0,0.00037877,2]
[394219448,1763388635339,-500.0,0.00037877,2]
[394219449,1763388635348,-500.0,0.00037878,120]
[394219450,1763388635357,-500.0,0.00037878,30]
[394219451,1763388635367,-151.603889,0.00037878,31]
[394219452,1763388635376,-151.0,0.00037878,31]
[394219453,1763388635385,-151.0,0.00037878,31]
[394219454,1763388635395,-151.0,0.00037878,31]
[394219455,1763388635404,-151.0,0.00037878,31]
[394219456,1763388635413,-151.0,0.00037878,30]
[394219457,1763388635423,-151.0,0.00037878,31]
[394219458,1763388635432,-151.0,0.00037878,30]
[394219459,1763388635442,-151.0,0.00037878,31]
[394219460,1763388635451,-151.0,0.00037878,31]
[394219461,1763388635462,-151.0,0.00037878,31]
[394219462,1763388635473,-151.0,0.00037878,31]
[394219463,1763388635482,-152.634158,0.00037878,31]
[394219464,1763388635492,-311.791019,0.00037878,31]
[394219465,1763388635502,-151.0,0.00037878,31]
[394219466,1763388635511,-311.791019,0.00037878,31]
[394219467,1763388635521,-153.588076,0.00037878,31]
[394219468,1763388635530,-311.791019,0.00037878,31]
[394219469,1763388635540,-151.0,0.00037878,31]
[394219470,1763388635550,-311.791019,0.00037878,31]
[394219471,1763388635559,-132106.6040419,0.00037878,2]
[394219472,1763388635597,-30828.8650264,0.00037878,2]
[394219473,1763388635608,-3341.46506904,0.00037878,2]
[394219474,1763388635643,-25987.08522611,0.00037878,2]
[394219505,1763388638061,-2452.59867951,0.00037648,2]
[394219507,1763388638071,-506.21849108,0.00037867,2]
[394219509,1763388638080,-1163.753278,0.00037878,31]
[394219510,1763388638089,-151.0,0.00037878,31]
[394219512,1763388638098,-1163.753278,0.00037878,31]
[394219514,1763388638107,-1163.753278,0.00037878,31]
[394219516,1763388638116,-567735.98063655,0.00037878,2]
[394219517,1763388638126,-500.0,0.00037881,120]
[394219519,1763388638135,-500.0,0.00037881,30]
[394219521,1763388638144,-169.34603786,0.00037888,120]
[394219523,1763388638153,-500.0,0.00037888,30]
[394219525,1763388638162,-500.0,0.00037888,30]
[394219526,1763388638172,-500.0,0.00037891,30]
[394219528,1763388638181,-500.0,0.00037893,2]
[394219530,1763388638190,-500.0,0.00037893,30]
[394219532,1763388638200,-229.08546414,0.000379,2]
[394219533,1763388638209,-500.0,0.00037901,30]
[394219535,1763388638220,-28391.9726069,0.00037907,4]
[394219537,1763388638229,-498.07624,0.0003791,2]
[394219539,1763388638240,-150.0,0.00037928,7]
[394219541,1763388638250,-2000.0,0.0003793,120]
[394219542,1763388638259,-2000.0,0.0003793,120]
[394219544,1763388638269,-2000.0,0.0003793,120]
[394219546,1763388638279,-2000.0,0.0003793,120]
[394219548,1763388638288,-1000.0,0.00037936,90]
[394219550,1763388638298,-682.751,0.00037936,90]
[394219551,1763388638307,-150.0,0.00037944,7]
[394219553,1763388638316,-28391.9726069,0.00037959,4]
[394219555,1763388638325,-198.23325754,0.00037967,2]
[394219557,1763388638334,-28391.9726069,0.00037968,4]
[394219558,1763388638343,-28391.9726069,0.00037969,4]
[394219560,1763388638352,-28391.9726069,0.0003797,4]
[394219562,1763388638362,-277.35679052,0.00037972,5]
[394219564,1763388638371,-277.35679052,0.00037972,5]
[394219566,1763388638381,-161.27020031,0.00037973,5]
[394219567,1763388638391,-502.2204382,0.00037973,5]
[394219569,1763388638400,-500.5369749,0.00037973,5]
[394219571,1763388638410,-500.0,0.00037973,5]
[394219573,1763388638419,-500.96125476,0.00037973,5]
[394219575,1763388638428,-500.42048735,0.00037973,5]
[394219576,1763388638437,-305.52529526,0.00037973,5]
[394219578,1763388638446,-500.0,0.00037973,5]
[394219580,1763388638455,-500.0,0.00037973,5]
[394219581,1763388638464,-500.77711163,0.00037973,5]
[394219583,1763388638473,-500.0,0.00037973,5]
[394219585,1763388638482,-527.27825092,0.00037973,5]
[394219586,1763388638492,-500.0,0.00037973,5]
[394219588,1763388638501,-501.34785536,0.00037973,5]
[394219590,1763388638510,-500.92231122,0.00037973,5]
[394219592,1763388638519,-500.0,0.00037973,5]
[394219594,1763388638528,-500.0,0.00037973,5]
[394219596,1763388638537,-26164.6555177,0.00037978,2]
[394219597,1763388638547,-3048.5001604,0.00037978,2]
[394219598,1763388638556,-500.0,0.00037979,30]
[394219599,1763388638565,-250.0,0.00037979,30]
[394219600,1763388638575,-520.0,0.00037979,30]
[394219601,1763388638584,-600.0,0.00037979,30]
[394219602,1763388638596,-539.24,0.00037979,30]
[394219603,1763388638605,-600.0,0.00037979,30]
[394219604,1763388638614,-600.0,0.00037979,30]
[394219605,1763388638624,-559.19188,0.00037979,30]
[394219606,1763388638633,-600.0,0.00037979,30]
[394219607,1763388638643,-151.0,0.00037979,30]
[394219608,1763388638653,-579.88197956,0.00037979,30]
[394219609,1763388638662,-600.0,0.00037979,30]
[394219611,1763388638671,-151.0,0.00037979,30]
[394219613,1763388638682,-601.33761281,0.00037979,30]
[394219615,1763388638692,-600.0,0.00037979,30]
[394219617,1763388638701,-1000.0,0.00037979,30]
[394219619,1763388638711,-600.0,0.00037979,30]
[394219621,1763388638723,-1000.0,0.00037979,30]
[394219623,1763388638732,-600.0,0.00037979,30]
[394219625,1763388638742,-1000.0,0.00037979,30]
[394219627,1763388638754,-600.0,0.00037979,30]
[394219629,1763388638763,-1000.0,0.00037979,30]
[394219631,1763388638772,-600.0,0.00037979,30]
[394219633,1763388638782,-1000.0,0.00037979,30]
[394219635,1763388638791,-600.0,0.00037979,30]
[394219637,1763388638801,-1000.0,0.00037979,30]
[394219639,1763388638810,-682.01408555,0.00037979,30]
[394219641,1763388638819,-151.0,0.00037979,30]
[394219643,1763388638829,-781.7387663,0.00037979,30]
[394219644,1763388638838,-151.0,0.00037979,30]
[394219647,1763388638848,-161.87945251,0.00037979,30]
[394219648,1763388638857,-300.0,0.00037979,30]
[394219650,1763388638866,-311.1,0.00037979,30]
[394219652,1763388638876,-322.6107,0.00037979,30]
[394219654,1763388638885,-334.5472959,0.00037979,30]
[394219656,1763388638894,-346.92554585,0.00037979,30]
[394219658,1763388638903,-6888.0,0.00037979,30]
[394219660,1763388638912,-7142.856,0.00037979,30]
[394219662,1763388638922,-7407.141672,0.00037979,30]
[394219664,1763388638931,-7681.20591386,0.00037979,30]
[394219666,1763388638940,-7965.41053268,0.00037979,30]
[394219668,1763388638950,-5117.03589161,0.00037979,30]
[394219670,1763388638960,-500.0,0.00037979,120]
[394219672,1763388638971,-500.0,0.00037979,30]
[394219674,1763388638981,-500.0,0.00037979,31]
[394219676,1763388638990,-151.0,0.00037979,31]
[394219678,1763388639000,-151.0,0.00037979,31]
[394219680,1763388639010,-151.0,0.00037979,30]
[394219682,1763388639020,-151.0,0.00037979,31]
[394219684,1763388639029,-151.0,0.00037979,30]
[394219686,1763388639038,-151.0,0.00037979,31]
[394219688,1763388639048,-151.0,0.00037979,31]
[394219690,1763388639057,-311.791019,0.00037979,31]
[394219692,1763388639066,-151.0,0.00037979,31]
[394219694,1763388639076,-311.791019,0.00037979,31]
[394219696,1763388639085,-311.791019,0.00037979,31]
[394219698,1763388639094,-311.791019,0.00037979,31]
[394219700,1763388639104,-1163.753278,0.00037979,31]
[394219702,1763388639114,-151.0,0.00037979,31]
[394219704,1763388639123,-1163.753278,0.00037979,31]
[394219706,1763388639132,-1163.753278,0.00037979,31]
[394219708,1763388639141,-498.07623,0.0003798,2]
[394219710,1763388639151,-151.0,0.0003798,31]
[394219712,1763388639161,-153.216414,0.0003798,31]
[394219714,1763388639170,-151.0,0.0003798,31]
[394219716,1763388639179,-151.0,0.0003798,31]
[394219718,1763388639188,-151.0,0.0003798,31]
[394219720,1763388639198,-151.949657,0.0003798,31]
[394219722,1763388639207,-151.0,0.0003798,31]
[394219724,1763388639217,-151.0,0.0003798,31]
[394219726,1763388639228,-160.036113,0.0003798,31]
[394219728,1763388639237,-151.0,0.0003798,31]
[394219730,1763388639247,-151.0,0.0003798,31]
[394219732,1763388639257,-151.0,0.0003798,31]
[394219734,1763388639267,-151.0,0.0003798,31]
[394219736,1763388639277,-151.0,0.0003798,31]
[394219738,1763388639286,-151.0,0.0003798,31]
[394219740,1763388639296,-151.0,0.0003798,31]
[394219742,1763388639305,-159.399545,0.0003798,31]
[394219744,1763388639315,-151.0,0.0003798,31]
[394219746,1763388639324,-151.0,0.0003798,31]
[394219747,1763388639334,-151.0,0.0003798,31]
[394219749,1763388639344,-151.0,0.0003798,31]
[394219751,1763388639353,-193.988966,0.0003798,31]
[394219752,1763388639363,-193.988966,0.0003798,31]
[394219753,1763388639372,-151.0,0.0003798,31]
[394219754,1763388639382,-193.988966,0.0003798,31]
[394219755,1763388639391,-151.0,0.0003798,31]
[394219756,1763388639401,-193.988966,0.0003798,31]
[394219757,1763388639412,-151.0,0.0003798,31]
[394219758,1763388639422,-151.0,0.0003798,31]
[394219760,1763388639431,-151.0,0.0003798,28]
[394219761,1763388639442,-151.0,0.0003798,31]
[394219762,1763388639454,-151.0,0.0003798,31]
[394219763,1763388639464,-151.0,0.0003798,31]
[394219765,1763388639474,-151.0,0.0003798,31]
[394219767,1763388639486,-151.0,0.0003798,31]
[394219769,1763388639496,-151.0,0.0003798,31]
[394219771,1763388639507,-152.419336,0.0003798,31]
[394219772,1763388639517,-181.682482,0.0003798,31]
[394219773,1763388639526,-157.406209,0.0003798,31]
[394219774,1763388639537,-230.079428,0.0003798,31]
[394219775,1763388639546,-151.0,0.0003798,31]
[394219776,1763388639556,-151.0,0.0003798,31]
[394219777,1763388639566,-230.079428,0.0003798,31]
[394219778,1763388639576,-151.0,0.0003798,31]
[394219779,1763388639586,-230.079428,0.0003798,31]
[394219780,1763388639595,-230.079428,0.0003798,31]
[394219781,1763388639605,-158.256702,0.0003798,31]
[394219782,1763388639614,-151.0,0.0003798,31]
[394219783,1763388639622,-158.256702,0.0003798,31]
[394219784,1763388639631,-158.256702,0.0003798,31]
[394219785,1763388639640,-158.256702,0.0003798,31]
[394219786,1763388639649,-151.0,0.0003798,31]
[394219787,1763388639658,-151.0,0.0003798,31]
[394219788,1763388639668,-151.0,0.0003798,31]
[394219789,1763388639677,-85175.9178208,0.0003798,4]
[394219790,1763388639687,-157.544389,0.0003799,31]
[394219791,1763388639696,-151.0,0.0003799,31]
[394219792,1763388639705,-151.726235,0.0003799,31]
[394219793,1763388639715,-151.0,0.0003799,31]
[394219794,1763388639724,-151.0,0.0003799,31]
[394219795,1763388639734,-151.0,0.0003799,31]
[394219796,1763388639744,-246.906712,0.0003799,31]
[394219797,1763388639757,-151.0,0.0003799,31]
[394219798,1763388639767,-151.0,0.0003799,31]
[394219799,1763388639776,-151.0,0.0003799,31]
[394219800,1763388639786,-151.0,0.0003799,31]
[394219801,1763388639795,-153.975795,0.0003799,31]
[394219802,1763388639804,-151.097438,0.0003799,31]
[394219803,1763388639814,-151.0,0.0003799,31]
[394219804,1763388639823,-151.0,0.0003799,31]
[394219805,1763388639834,-151.56895,0.0003799,31]
[394219806,1763388639843,-151.0,0.0003799,31]
[394219807,1763388639852,-151.0,0.0003799,31]
[394219808,1763388639861,-151.0,0.0003799,31]
[394219809,1763388639872,-177.446999,0.0003799,31]
[394219810,1763388639881,-151.0,0.0003799,31]
[394219812,1763388639890,-151.0,0.0003799,31]
[394219814,1763388639899,-151.0,0.0003799,15]
[394219816,1763388639908,-151.0,0.0003799,31]
[394219818,1763388639917,-151.0,0.0003799,31]
[394219819,1763388639926,-151.0,0.0003799,31]
[394219820,1763388639935,-151.0,0.0003799,31]
[394219822,1763388639944,-151.0,0.0003799,31]
[394219824,1763388639954,-151.0,0.0003799,31]
[394219826,1763388639963,-151.0,0.0003799,31]
[394219827,1763388639972,-181.005969,0.0003799,31]
[394219828,1763388639981,-181.005969,0.0003799,31]
[394219829,1763388639990,-181.005969,0.0003799,31]
[394219830,1763388639999,-181.005969,0.0003799,31]
[394219831,1763388640008,-151.0,0.0003799,31]
[394219832,1763388640017,-151.0,0.0003799,31]
[394219833,1763388640026,-151.0,0.0003799,31]
[394219834,1763388640035,-151.0,0.0003799,31]
[394219835,1763388640044,-151.0,0.0003799,31]
[394219836,1763388640053,-151.0,0.0003799,31]
[394219837,1763388640062,-151.0,0.0003799,31]
[394219838,1763388640071,-151.0,0.0003799,31]
[394219839,1763388640083,-151.0,0.0003799,31]
[394219840,1763388640092,-151.0,0.0003799,31]
[394219841,1763388640100,-151.494184,0.0003799,31]
[394219842,1763388640109,-151.0,0.0003799,31]
[394219843,1763388640118,-151.0,0.0003799,31]
[394219844,1763388640127,-151.0,0.0003799,31]
[394219845,1763388640137,-151.0,0.0003799,31]
[394219846,1763388640146,-151.0,0.0003799,31]
[394219847,1763388640155,-153.845601,0.0003799,31]
[394219848,1763388640164,-151.0,0.0003799,31]
[394219849,1763388640173,-151.0,0.0003799,31]
[394219850,1763388640182,-151.0,0.0003799,31]
[394219851,1763388640191,-151.0,0.0003799,31]
[394219852,1763388640199,-151.0,0.0003799,31]
[394219853,1763388640208,-151.0,0.0003799,31]
[394219854,1763388640218,-151.0,0.0003799,31]
[394219855,1763388640227,-151.0,0.0003799,31]
[394219856,1763388640236,-151.0,0.0003799,31]
[394219857,1763388640247,-151.0,0.0003799,31]
[394219858,1763388640257,-262.351057,0.0003799,31]
[394219859,1763388640266,-151.0,0.0003799,31]
[394219860,1763388640275,-193.988966,0.0003799,31]
[394219861,1763388640284,-151.0,0.0003799,31]
[394219862,1763388640293,-193.988966,0.0003799,31]
[394219863,1763388640302,-193.988966,0.0003799,31]
[394219864,1763388640311,-151.000001,0.0003799,31]
[394219865,1763388640320,-151.0,0.0003799,31]
[394219866,1763388640329,-193.988966,0.0003799,31]
[394219867,1763388640339,-184.715224,0.0003799,28]
[394219868,1763388640350,-151.0,0.0003799,31]
[394219869,1763388640359,-151.0,0.0003799,31]
[394219870,1763388640368,-151.0,0.0003799,31]
[394219871,1763388640377,-230.079428,0.0003799,31]
[394219872,1763388640386,-266.81287,0.0003799,31]
[394219873,1763388640395,-230.079428,0.0003799,31]
[394219874,1763388640405,-151.0,0.0003799,31]
[394219875,1763388640414,-230.079428,0.0003799,31]
[394219876,1763388640423,-230.079428,0.0003799,31]
[394219877,1763388640433,-158.256702,0.0003799,31]
[394219878,1763388640442,-234.845407,0.0003799,31]
[394219879,1763388640451,-158.256702,0.0003799,31]
[394219880,1763388640461,-158.256702,0.0003799,31]
[394219881,1763388640471,-158.256702,0.0003799,31]
[394219882,1763388640480,-151.0,0.0003799,31]
[394219883,1763388640489,-151.0,0.0003799,31]
[394219884,1763388640499,-151.0,0.00037997,14]
[394219885,1763388640508,-500.0,0.00037999,30]
[394219886,1763388640518,-300.0,0.00037999,10]
[394219887,1763388640526,-47000.0,0.00038,120]
[394219888,1763388640536,-2000.0,0.00038,2]
[394219889,1763388640545,-104065.37971339,0.00038,30]
[394219890,1763388640555,-97374.15634242,0.00038,2]
[394219891,1763388640565,-151.0,0.00038,31]
[394219892,1763388640575,-225.572255,0.00038,31]
[394219893,1763388640585,-151.0,0.00038,31]
[394219894,1763388640595,-151.0,0.00038,31]
[394219895,1763388640604,-151.0,0.00038,31]
[394219896,1763388640614,-151.0,0.00038,31]
[394219897,1763388640623,-151.0,0.00038,31]
[394219898,1763388640632,-151.0,0.00038,31]
[394219899,1763388640641,-151.0,0.00038,31]
[394219900,1763388640652,-256.278568,0.00038,31]
[394219901,1763388640661,-151.0,0.00038,31]
[394219902,1763388640671,-151.0,0.00038,31]
[394219903,1763388640680,-151.0,0.00038,31]
[394219904,1763388640689,-155.14276,0.00038,31]
[394219905,1763388640699,-151.0,0.00038,31]
[394219906,1763388640708,-151.0,0.00038,15]
[394219907,1763388640717,-151.0,0.00038,31]
[394219908,1763388640727,-151.0,0.00038,31]
[394219909,1763388640736,-151.0,0.00038,31]
[394219910,1763388640745,-196.435603,0.00038,31]
[394219911,1763388640759,-151.0,0.00038,31]
[394219912,1763388640768,-154.707784,0.00038,31]
[394219913,1763388640777,-181.005969,0.00038,31]
[394219914,1763388640786,-181.005969,0.00038,31]
[394219915,1763388640796,-181.005969,0.00038,31]
[394219916,1763388640806,-181.005969,0.00038,31]
[394219917,1763388640816,-151.0,0.00038,31]
[394219918,1763388640826,-151.0,0.00038,31]
[394219919,1763388640835,-151.0,0.00038,31]
[394219920,1763388640845,-151.0,0.00038,31]
[394219921,1763388640856,-267.304473,0.00038,31]
[394219922,1763388640865,-151.0,0.00038,31]
[394219923,1763388640875,-151.0,0.00038,31]
[394219924,1763388640884,-151.0,0.00038,31]
[394219925,1763388641115,-151.0,0.00038,31]
[394219926,1763388641125,-151.0,0.00038,31]
[394219927,1763388641135,-193.988966,0.00038,31]
[394219928,1763388641144,-151.0,0.00038,31]
[394219929,1763388641153,-193.988966,0.00038,31]
[394219930,1763388641162,-193.988966,0.00038,31]
[394219931,1763388641171,-282.947068,0.00038,31]
[394219932,1763388641180,-193.988966,0.00038,31]
[394219933,1763388641189,-151.0,0.00038,31]
[394219934,1763388641198,-151.0,0.00038,31]
[394219935,1763388641207,-151.0,0.00038,31]
[394219936,1763388641218,-230.079428,0.00038,31]
[394219937,1763388641227,-230.079428,0.00038,31]
[394219938,1763388641236,-151.0,0.00038,31]
[394219939,1763388641245,-230.079428,0.00038,31]
[394219940,1763388641255,-230.079428,0.00038,31]
[394219941,1763388641271,-158.256702,0.00038,31]
[394219942,1763388641290,-158.256702,0.00038,31]
[394219943,1763388641299,-158.256702,0.00038,31]
[394219944,1763388641309,-158.256702,0.00038,31]
[394219945,1763388641318,-152.44884,0.00038,31]
[394219946,1763388641327,-151.0,0.00038,31]
[394219947,1763388641337,-248.796926,0.00038,31]
[394219948,1763388641346,-151.0,0.00038,31]
[394219949,1763388641355,-151.0,0.00038,30]
[394219950,1763388641365,-151.0,0.00038,31]
[394219951,1763388641374,-151.0,0.00038,30]
[394219952,1763388641384,-151.0,0.00038,31]
[394219953,1763388641393,-311.791019,0.00038,31]
[394219954,1763388641403,-182.717014,0.00038,31]
[394219955,1763388641413,-311.791019,0.00038,31]
[394219956,1763388641422,-311.791019,0.00038,31]
[394219957,1763388641432,-311.791019,0.00038,31]
[394219958,1763388641442,-1163.753278,0.00038,31]
[394219959,1763388641451,-151.0,0.00038,31]
[394219960,1763388641461,-1163.753278,0.00038,31]
[394219961,1763388641470,-1163.753278,0.00038,31]
[394219962,1763388641481,-151.0,0.00038001,14]
[394219963,1763388641495,-1103.96357361,0.00038006,2]
[394219964,1763388641510,-151.0,0.00038009,6]
[394219965,1763388641521,-500.0,0.00038017,2]
[394219966,1763388641530,-566.92,0.00038017,2]
[394219967,1763388641539,-500.0,0.00038017,2]
[394219968,1763388641548,-300.0,0.00038017,2]
[394219969,1763388641557,-300.0,0.00038017,2]
[394219970,1763388641566,-1000.0,0.00038018,90]
[394219971,1763388641575,-1220.42775844,0.00038027,30]
[394219972,1763388641583,-151.0,0.00038032,14]
[394219973,1763388641592,-1103.96357361,0.00038036,2]
[394219974,1763388641601,-16396.10463475,0.00038036,2]
[394219975,1763388641610,-221.39638379,0.00038036,2]
[394219976,1763388641619,-218.8096058,0.00038036,2]
[394219977,1763388641628,-151.0,0.00038042,14]
[394219978,1763388641637,-151.0,0.00038042,14]
[394219979,1763388641646,-154.56252507,0.00038055,30]
[394219980,1763388641655,-864.25,0.0003806,5]
[394219981,1763388641665,-151.0,0.00038098,14]
[394219982,1763388641675,-325.0,0.0003811,120]
[394219983,1763388641685,-171.05977945,0.0003811,7]
[394219984,1763388641695,-179.99296023,0.0003811,7]
[394219985,1763388641705,-187.87182049,0.0003811,7]
[394219986,1763388641714,-260.40032711,0.0003811,7]
[394219987,1763388641726,-163.96668263,0.0003811,7]
[394219988,1763388641736,-150.0,0.0003811,7]
[394219989,1763388641746,-150.0,0.0003811,7]
[394219990,1763388641758,-228.94267709,0.0003811,7]
[394219991,1763388641768,-168.66866561,0.0003811,7]
[394219992,1763388641778,-150.0,0.0003811,7]
[394219993,1763388641788,-248.34887386,0.0003811,7]
[394219994,1763388641798,-190.65920669,0.0003811,7]
[394219995,1763388641809,-181.09200317,0.0003811,7]
[394219996,1763388641819,-1000.0,0.00038113,90]
[394219997,1763388641828,-151.0,0.00038116,31]
[394219998,1763388641837,-151.0,0.00038116,31]
[394219999,1763388641851,-151.0,0.00038116,31]
[394220000,1763388641861,-151.0,0.00038116,31]
[394220001,1763388641870,-151.0,0.00038116,31]
[394220002,1763388641880,-181.005969,0.00038116,31]
[394220003,1763388641890,-181.005969,0.00038116,31]
[394220004,1763388641900,-181.005969,0.00038116,31]
[394220005,1763388641910,-181.005969,0.00038116,31]
[394220006,1763388641919,-300.0,0.00038125,10]
[394220007,1763388641930,-260.02125528,0.00038126,2]
[394220008,1763388641939,-260.02125528,0.00038126,2]
[394220009,1763388641948,-151.0,0.00038126,31]
[394220010,1763388641957,-246.66567,0.00038126,31]
[394220011,1763388641966,-151.0,0.00038126,31]
[394220012,1763388641978,-151.0,0.00038126,31]
[394220013,1763388641987,-151.0,0.00038126,31]
[394220014,1763388642000,-151.0,0.00038126,31]
[394220015,1763388642009,-151.0,0.00038126,31]
[394220016,1763388642019,-151.0,0.00038126,31]
[394220017,1763388642029,-151.0,0.00038126,31]
[394220018,1763388642038,-151.0,0.00038126,31]
[394220019,1763388642048,-151.0,0.00038126,31]
[394220020,1763388642057,-151.0,0.00038126,31]
[394220021,1763388642066,-151.0,0.00038126,31]
[394220022,1763388642075,-151.0,0.00038126,31]
[394220023,1763388642085,-177.091928,0.00038126,31]
[394220024,1763388642095,-151.0,0.00038126,31]
[394220025,1763388642104,-151.0,0.00038126,31]
[394220026,1763388642114,-151.0,0.00038126,31]
[394220027,1763388642123,-151.0,0.00038126,31]
[394220028,1763388642133,-151.0,0.00038126,31]
[394220029,1763388642143,-151.0,0.00038126,31]
[394220030,1763388642152,-151.0,0.00038126,31]
[394220031,1763388642162,-151.0,0.00038126,31]
[394220032,1763388642171,-193.988966,0.00038126,31]
[394220033,1763388642181,-151.0,0.00038126,31]
[394220034,1763388642191,-193.988966,0.00038126,31]
[394220035,1763388642200,-193.988966,0.00038126,31]
[394220036,1763388642210,-193.988966,0.00038126,31]
[394220037,1763388642223,-151.0,0.00038126,31]
[394220038,1763388642232,-151.0,0.00038126,31]
[394220039,1763388642242,-151.0,0.00038126,31]
[394220040,1763388642252,-151.0,0.00038126,31]
[394220041,1763388642261,-151.0,0.00038126,31]
[394220042,1763388642271,-151.0,0.00038126,31]
[394220043,1763388642281,-230.079428,0.00038126,31]
[394220044,1763388642291,-230.079428,0.00038126,31]
[394220045,1763388642301,-230.079428,0.00038126,31]
[394220046,1763388642310,-230.079428,0.00038126,31]
[394220047,1763388642320,-230.079428,0.00038126,31]
[394220048,1763388642330,-230.079428,0.00038126,31]
[394220049,1763388642339,-230.079428,0.00038126,31]
[394220050,1763388642349,-230.07942,0.00038126,31]
[394220051,1763388642359,-158.256702,0.00038126,31]
[394220053,1763388642368,-158.256702,0.00038126,31]
[394220056,1763388642378,-158.256702,0.00038126,31]
[394220058,1763388642392,-158.256702,0.00038126,31]
[394220059,1763388642402,-158.256702,0.00038126,31]
[394220060,1763388642412,-158.256702,0.00038126,31]
[394220062,1763388642421,-500.0,0.00038126,14]
[394220064,1763388642431,-500.0,0.00038126,14]
[394220065,1763388642441,-500.0,0.00038126,14]
[394220066,1763388642452,-158.256702,0.00038126,31]
[394220067,1763388642463,-500.0,0.00038126,14]
[394220068,1763388642475,-500.0,0.00038126,14]
[394220069,1763388642485,-158.256704,0.00038126,31]
[394220070,1763388642494,-500.0,0.00038126,14]
[394220071,1763388642504,-500.0,0.00038126,14]
[394220072,1763388642513,-500.0,0.00038126,14]
[394220073,1763388642524,-151.0,0.00038126,31]
[394220074,1763388642533,-151.0,0.00038133,14]
[394220075,1763388642543,-151.0,0.00038133,14]
[394220076,1763388642552,-151.0,0.00038133,14]
[394220077,1763388642562,-151.0,0.00038133,14]
[394220078,1763388642571,-151.0,0.00038133,14]
[394220079,1763388642581,-151.0,0.00038133,14]
[394220080,1763388642591,-151.0,0.00038133,14]
[394220081,1763388642601,-151.0,0.00038133,14]
[394220082,1763388642611,-155.053873,0.00038133,14]
[394220083,1763388642621,-300.0,0.00038135,10]
[394220084,1763388642631,-500.0,0.00038135,30]
[394220085,1763388642642,-500.0,0.00038135,30]
[394220086,1763388642652,-500.0,0.00038135,30]
[394220087,1763388642662,-500.0,0.00038135,30]
[394220088,1763388642673,-500.0,0.00038135,30]